[Event "*** SCC Grand Prix: Titled Tuesday Blitz"]
[Site "Chess.com"]
[Date "2020.06.09"]
[Round "9"]
[White "LionTheLeon_06"]
[Black "arminmusovic"]
[Result "1-0"]
[WhiteElo "2690"]
[BlackElo "2542"]
[TimeControl "180+1"]
[EndTime "10:46:49 PDT"]
[Termination "LionTheLeon_06 won by resignation"]

1. d4 {[%clk 0:03:00.9]} 1... d5 {[%clk 0:03:00.2]} 2. c4 {[%clk 0:03:01.1]}
2... c5 {[%clk 0:03:01.1]} 3. cxd5 {[%clk 0:02:56.4]} 3... e6 {[%clk 0:03:00.9]}
4. dxe6 {[%clk 0:02:54.4]} 4... Bxe6 {[%clk 0:03:01.8]} 5. Nf3 {[%clk
0:02:54.2]} 5... Nf6 {[%clk 0:03:01.1]} 6. Nc3 {[%clk 0:02:53.7]} 6... Nc6
{[%clk 0:03:00.9]} 7. dxc5 {[%clk 0:02:49.5]} 7... Qxd1+ {[%clk 0:03:00.5]} 8.
Nxd1 {[%clk 0:02:49.5]} 8... Nb4 {[%clk 0:02:45.8]} 9. Ne3 {[%clk 0:02:22.1]}
9... Bxa2 {[%clk 0:02:38]} 10. Bd2 {[%clk 0:01:49.2]} 10... Bxc5 {[%clk
0:02:23.3]} 11. g3 {[%clk 0:01:41.2]} 11... Ne4 {[%clk 0:02:08.7]} 12. Rc1
{[%clk 0:01:35.2]} 12... b6 {[%clk 0:01:10.9]} 13. Bg2 {[%clk 0:01:24.1]} 13...
Rd8 {[%clk 0:01:11.1]} 14. Bc3 {[%clk 0:00:40.6]} 14... O-O {[%clk 0:01:00.3]}
15. O-O {[%clk 0:00:27.3]} 15... Rfe8 {[%clk 0:00:45]} 16. Bxb4 {[%clk 0:00:22]}
16... Bxb4 {[%clk 0:00:44.3]} 17. Ra1 {[%clk 0:00:21.8]} 17... Bb3 {[%clk
0:00:35.8]} 18. Rxa7 {[%clk 0:00:21]} 18... Bc5 {[%clk 0:00:36]} 19. Ng4 {[%clk
0:00:14.7]} 19... h5 {[%clk 0:00:31.4]} 20. Nge5 {[%clk 0:00:14.5]} 20... Nxf2
{[%clk 0:00:10.4]} 21. Rxf2 {[%clk 0:00:14.8]} 21... Rd1+ {[%clk 0:00:10.4]} 22.
Bf1 {[%clk 0:00:15.3]} 22... f6 {[%clk 0:00:10.9]} 23. Nd3 {[%clk 0:00:15]}
23... Be3 {[%clk 0:00:10.7]} 24. Kg2 {[%clk 0:00:11.9]} 24... b5 {[%clk
0:00:11]} 25. Rb7 {[%clk 0:00:11.3]} 25... Bc4 {[%clk 0:00:11.3]} 26. Nf4 {[%clk
0:00:11.5]} 26... g5 {[%clk 0:00:09.3]} 27. Nxh5 {[%clk 0:00:11.6]} 27... g4
{[%clk 0:00:09.1]} 28. Nxf6+ {[%clk 0:00:11.7]} 28... Kf8 {[%clk 0:00:09.3]} 29.
Nh7+ {[%clk 0:00:11.4]} 29... Kg8 {[%clk 0:00:09.7]} 30. Nf6+ {[%clk 0:00:12.2]}
30... Kf8 {[%clk 0:00:10.4]} 31. Nxe8 {[%clk 0:00:10.9]} 31... Bxf2 {[%clk
0:00:09.1]} 32. Kxf2 {[%clk 0:00:09.9]} 32... gxf3 {[%clk 0:00:09.2]} 33. Nf6
{[%clk 0:00:08.1]} 33... fxe2 {[%clk 0:00:09.1]} 34. Bxe2 {[%clk 0:00:07.6]}
34... Rd2 {[%clk 0:00:09.7]} 35. Nh7+ {[%clk 0:00:07.3]} 35... Ke8 {[%clk
0:00:10]} 36. Nf6+ {[%clk 0:00:07.3]} 36... Kf8 {[%clk 0:00:10.5]} 37. g4 {[%clk
0:00:04.9]} 37... Rxe2+ {[%clk 0:00:10.6]} 38. Kg3 {[%clk 0:00:05.5]} 38... Rxb2
{[%clk 0:00:10.9]} 39. g5 {[%clk 0:00:06.1]} 39... Rb3+ {[%clk 0:00:11.2]} 40.
Kf4 {[%clk 0:00:06.4]} 40... Rh3 {[%clk 0:00:11.3]} 41. g6 {[%clk 0:00:06.2]}
41... Rh4+ {[%clk 0:00:08.8]} 42. Kg5 {[%clk 0:00:06.2]} 42... Rg4+ {[%clk
0:00:04.3]} 1-0

[Event "*** SCC Grand Prix: Titled Tuesday Blitz"]
[Site "Chess.com"]
[Date "2020.06.09"]
[Round "9"]
[White "ARTHURMOTIVATOR"]
[Black "chessmaugli"]
[Result "1-0"]
[WhiteElo "2295"]
[BlackElo "2386"]
[TimeControl "180+1"]
[EndTime "10:46:49 PDT"]
[Termination "ARTHURMOTIVATOR won by resignation"]

1. e4 {[%clk 0:03:00.9]} 1... c5 {[%clk 0:02:59]} 2. b3 {[%clk 0:03:00.2]} 2...
Nc6 {[%clk 0:02:57.9]} 3. Bb2 {[%clk 0:02:57.6]} 3... e5 {[%clk 0:02:55.8]} 4.
Bb5 {[%clk 0:02:56.3]} 4... d6 {[%clk 0:02:54.6]} 5. Bxc6+ {[%clk 0:02:54.5]}
5... bxc6 {[%clk 0:02:53.4]} 6. Ne2 {[%clk 0:02:54.4]} 6... Nf6 {[%clk
0:02:51.2]} 7. d3 {[%clk 0:02:51.2]} 7... Be7 {[%clk 0:02:44.6]} 8. O-O {[%clk
0:02:47.1]} 8... O-O {[%clk 0:02:44.1]} 9. h3 {[%clk 0:02:47.7]} 9... Re8 {[%clk
0:02:40.9]} 10. Nd2 {[%clk 0:02:47.3]} 10... Bf8 {[%clk 0:02:39.3]} 11. f4
{[%clk 0:02:42.9]} 11... Nd7 {[%clk 0:02:28.9]} 12. Nf3 {[%clk 0:02:39.3]} 12...
f6 {[%clk 0:02:27.1]} 13. Qe1 {[%clk 0:02:26.5]} 13... g6 {[%clk 0:02:23.3]} 14.
Qg3 {[%clk 0:02:24.7]} 14... Bg7 {[%clk 0:02:22.4]} 15. Rf2 {[%clk 0:02:03.3]}
15... Nf8 {[%clk 0:02:18.4]} 16. Raf1 {[%clk 0:02:02.1]} 16... Ne6 {[%clk
0:02:16.6]} 17. Bc1 {[%clk 0:01:57.4]} 17... Nd4 {[%clk 0:02:11.2]} 18. Nexd4
{[%clk 0:01:53.8]} 18... cxd4 {[%clk 0:02:09.7]} 19. h4 {[%clk 0:01:46.8]} 19...
Qd7 {[%clk 0:01:58.3]} 20. Nh2 {[%clk 0:01:21.4]} 20... Qf7 {[%clk 0:01:48.5]}
21. Ng4 {[%clk 0:01:11.7]} 21... h5 {[%clk 0:01:38.4]} 22. Nh2 {[%clk
0:01:01.4]} 22... Kh7 {[%clk 0:01:37]} 23. Qf3 {[%clk 0:00:56.4]} 23... a5
{[%clk 0:01:26.8]} 24. g4 {[%clk 0:00:54.5]} 24... hxg4 {[%clk 0:01:24.5]} 25.
Nxg4 {[%clk 0:00:54.2]} 25... Bxg4 {[%clk 0:01:20.3]} 26. Qxg4 {[%clk
0:00:53.9]} 26... a4 {[%clk 0:01:13.9]} 27. f5 {[%clk 0:00:53.8]} 27... Rg8
{[%clk 0:01:06.3]} 28. Kh1 {[%clk 0:00:41.4]} 28... axb3 {[%clk 0:01:01.4]} 29.
axb3 {[%clk 0:00:40.7]} 29... Ra7 {[%clk 0:00:58.3]} 30. Rg2 {[%clk 0:00:39.7]}
30... Bh6 {[%clk 0:00:53.9]} 31. fxg6+ {[%clk 0:00:33.6]} 31... Qxg6 {[%clk
0:00:47.6]} 32. Qxg6+ {[%clk 0:00:33.7]} 32... Rxg6 {[%clk 0:00:46.4]} 33. Rxg6
{[%clk 0:00:34.3]} 33... Kxg6 {[%clk 0:00:44.5]} 34. Bxh6 {[%clk 0:00:34.9]}
34... Kxh6 {[%clk 0:00:43.9]} 35. Rxf6+ {[%clk 0:00:35.6]} 35... Kh5 {[%clk
0:00:42.5]} 36. Rxd6 {[%clk 0:00:36.2]} 36... Kxh4 {[%clk 0:00:36.9]} 37. Kg2
{[%clk 0:00:34.1]} 37... Kg4 {[%clk 0:00:36.2]} 38. Rg6+ {[%clk 0:00:32.1]}
38... Kf4 {[%clk 0:00:35.6]} 39. Rf6+ {[%clk 0:00:32.2]} 39... Ke3 {[%clk
0:00:34.7]} 40. Rxc6 {[%clk 0:00:31]} 40... Rg7+ {[%clk 0:00:32.7]} 41. Kh3
{[%clk 0:00:30]} 41... Rg1 {[%clk 0:00:31.6]} 42. Rc5 {[%clk 0:00:28.5]} 42...
Kf3 {[%clk 0:00:28]} 43. Kh2 {[%clk 0:00:24.2]} 43... Rc1 {[%clk 0:00:25.6]} 44.
b4 {[%clk 0:00:22.5]} 44... Kf4 {[%clk 0:00:22.4]} 45. Kg2 {[%clk 0:00:20.6]}
45... Rb1 {[%clk 0:00:21.2]} 46. b5 {[%clk 0:00:20.2]} 46... Ke3 {[%clk
0:00:19.5]} 47. Rxe5 {[%clk 0:00:19.7]} 47... Rb2 {[%clk 0:00:18.6]} 48. Rc5
{[%clk 0:00:19.7]} 48... Kf4 {[%clk 0:00:17.3]} 49. Kf2 {[%clk 0:00:19.8]} 1-0

[Event "*** SCC Grand Prix: Titled Tuesday Blitz"]
[Site "Chess.com"]
[Date "2020.06.09"]
[Round "9"]
[White "Xeniya2005"]
[Black "ShahMatKanal"]
[Result "0-1"]
[WhiteElo "2306"]
[BlackElo "2467"]
[TimeControl "180+1"]
[EndTime "10:46:51 PDT"]
[Termination "ShahMatKanal won on time"]

1. e4 {[%clk 0:03:00.9]} 1... c5 {[%clk 0:02:55.8]} 2. Be2 {[%clk 0:02:59.2]}
2... g6 {[%clk 0:02:53.1]} 3. f4 {[%clk 0:02:58.7]} 3... d5 {[%clk 0:02:51.4]}
4. d3 {[%clk 0:02:56.7]} 4... Bg7 {[%clk 0:02:49.6]} 5. Nf3 {[%clk 0:02:55.9]}
5... Nc6 {[%clk 0:02:48.5]} 6. O-O {[%clk 0:02:54.6]} 6... Bg4 {[%clk
0:02:44.6]} 7. c3 {[%clk 0:02:50.5]} 7... dxe4 {[%clk 0:02:34.8]} 8. dxe4 {[%clk
0:02:48.5]} 8... Qc7 {[%clk 0:02:34.4]} 9. Qc2 {[%clk 0:02:44.8]} 9... Nf6
{[%clk 0:02:30.3]} 10. Be3 {[%clk 0:02:40.2]} 10... b6 {[%clk 0:02:25.7]} 11.
Nbd2 {[%clk 0:02:39.3]} 11... O-O {[%clk 0:02:25.2]} 12. Rae1 {[%clk 0:02:37.8]}
12... Rfd8 {[%clk 0:02:18.5]} 13. h3 {[%clk 0:02:32.7]} 13... Bxf3 {[%clk
0:02:16.6]} 14. Nxf3 {[%clk 0:02:29.2]} 14... Nh5 {[%clk 0:02:02.8]} 15. e5
{[%clk 0:02:16.6]} 15... Ng3 {[%clk 0:02:00.5]} 16. Rf2 {[%clk 0:02:14.8]} 16...
Nxe2+ {[%clk 0:02:00.6]} 17. Qxe2 {[%clk 0:02:10.8]} 17... e6 {[%clk 0:01:32.9]}
18. Rff1 {[%clk 0:01:52]} 18... Rd7 {[%clk 0:01:29.9]} 19. Bf2 {[%clk
0:01:48.3]} 19... Ne7 {[%clk 0:01:26.3]} 20. Ng5 {[%clk 0:01:37.1]} 20... Rad8
{[%clk 0:01:22.8]} 21. Ne4 {[%clk 0:01:36]} 21... c4 {[%clk 0:01:10.5]} 22. Bh4
{[%clk 0:01:33.2]} 22... h6 {[%clk 0:00:57.1]} 23. Bxe7 {[%clk 0:01:13]} 23...
Rxe7 {[%clk 0:00:56.8]} 24. Nd6 {[%clk 0:01:12.2]} 24... b5 {[%clk 0:00:44.5]}
25. Kh2 {[%clk 0:01:09.8]} 25... a6 {[%clk 0:00:42]} 26. Rd1 {[%clk 0:01:07.5]}
26... Red7 {[%clk 0:00:41.8]} 27. Ne4 {[%clk 0:00:58.9]} 27... Rxd1 {[%clk
0:00:40.4]} 28. Rxd1 {[%clk 0:00:57.7]} 28... Rd5 {[%clk 0:00:34.4]} 29. Rxd5
{[%clk 0:00:37.6]} 29... exd5 {[%clk 0:00:34.4]} 30. Nd6 {[%clk 0:00:34]} 30...
Qe7 {[%clk 0:00:26.5]} 31. g3 {[%clk 0:00:10.9]} 31... f6 {[%clk 0:00:25]} 32.
Qd2 {[%clk 0:00:10.4]} 32... Qe6 {[%clk 0:00:20.6]} 33. Nb7 {[%clk 0:00:07.1]}
33... fxe5 {[%clk 0:00:20]} 34. fxe5 {[%clk 0:00:04]} 34... Bxe5 {[%clk
0:00:19.6]} 35. Qe3 {[%clk 0:00:03.9]} 35... Qe7 {[%clk 0:00:16.9]} 36. Nc5
{[%clk 0:00:03.4]} 36... Bd6 {[%clk 0:00:13.1]} 37. Qxe7 {[%clk 0:00:02.4]}
37... Bxe7 {[%clk 0:00:14]} 38. Nd7 {[%clk 0:00:02.6]} 38... Kf7 {[%clk
0:00:10.3]} 39. Nb8 {[%clk 0:00:02.4]} 39... a5 {[%clk 0:00:09.7]} 40. Nc6
{[%clk 0:00:02.1]} 40... b4 {[%clk 0:00:06.8]} 0-1

[Event "*** SCC Grand Prix: Titled Tuesday Blitz"]
[Site "Chess.com"]
[Date "2020.06.09"]
[Round "9"]
[White "AttilaTurzo"]
[Black "PowerThinking2650"]
[Result "1/2-1/2"]
[WhiteElo "2479"]
[BlackElo "2329"]
[TimeControl "180+1"]
[EndTime "10:46:56 PDT"]
[Termination "Game drawn by repetition"]

1. e4 {[%clk 0:03:00.9]} 1... e5 {[%clk 0:02:55]} 2. Nf3 {[%clk 0:03:00.5]} 2...
Nc6 {[%clk 0:02:55]} 3. Bb5 {[%clk 0:03:01.1]} 3... a6 {[%clk 0:02:54.9]} 4. Ba4
{[%clk 0:03:01]} 4... Nf6 {[%clk 0:02:53]} 5. O-O {[%clk 0:03:00.7]} 5... Be7
{[%clk 0:02:51.4]} 6. Re1 {[%clk 0:03:00.7]} 6... b5 {[%clk 0:02:51.4]} 7. Bb3
{[%clk 0:03:00.3]} 7... d6 {[%clk 0:02:51.5]} 8. c3 {[%clk 0:02:59.4]} 8... O-O
{[%clk 0:02:51.4]} 9. h3 {[%clk 0:02:59.4]} 9... Bb7 {[%clk 0:02:51.3]} 10. d4
{[%clk 0:02:59.6]} 10... Re8 {[%clk 0:02:51.6]} 11. Nbd2 {[%clk 0:02:59.3]}
11... Bf8 {[%clk 0:02:51.7]} 12. Bc2 {[%clk 0:02:47.5]} 12... h6 {[%clk
0:02:50.8]} 13. d5 {[%clk 0:02:44.4]} 13... Ne7 {[%clk 0:02:46.6]} 14. b3 {[%clk
0:02:44.7]} 14... c6 {[%clk 0:02:30.4]} 15. c4 {[%clk 0:02:44.6]} 15... c5
{[%clk 0:02:19.8]} 16. Bd3 {[%clk 0:02:31.8]} 16... b4 {[%clk 0:02:17.8]} 17. a3
{[%clk 0:02:20.6]} 17... a5 {[%clk 0:02:17.3]} 18. Nf1 {[%clk 0:02:18.9]} 18...
Ng6 {[%clk 0:01:58.6]} 19. g3 {[%clk 0:02:01.3]} 19... Qd7 {[%clk 0:01:52.9]}
20. Kg2 {[%clk 0:02:00.4]} 20... Bc8 {[%clk 0:01:52.1]} 21. Ng1 {[%clk
0:01:59.7]} 21... Bb7 {[%clk 0:01:42]} 22. a4 {[%clk 0:01:59.7]} 22... Nh7
{[%clk 0:01:32.3]} 23. h4 {[%clk 0:01:58.5]} 23... Ne7 {[%clk 0:01:26.6]} 24. h5
{[%clk 0:01:53.6]} 24... Nf6 {[%clk 0:01:11.7]} 25. Ne3 {[%clk 0:01:51.3]} 25...
Kh8 {[%clk 0:01:09]} 26. f4 {[%clk 0:01:42.8]} 26... Bc8 {[%clk 0:00:58.7]} 27.
Ra2 {[%clk 0:01:35.7]} 27... Ng4 {[%clk 0:00:55.1]} 28. Be2 {[%clk 0:01:31.1]}
28... Nxe3+ {[%clk 0:00:53.5]} 29. Bxe3 {[%clk 0:01:32]} 29... exf4 {[%clk
0:00:50.8]} 30. gxf4 {[%clk 0:01:31.3]} 30... f5 {[%clk 0:00:50.9]} 31. e5
{[%clk 0:01:29.6]} 31... dxe5 {[%clk 0:00:46.7]} 32. fxe5 {[%clk 0:01:30.5]}
32... Bb7 {[%clk 0:00:43.4]} 33. Bf3 {[%clk 0:01:18]} 33... Ng8 {[%clk
0:00:33.1]} 34. Bf4 {[%clk 0:01:12.8]} 34... Qf7 {[%clk 0:00:26]} 35. Ne2 {[%clk
0:01:06.5]} 35... Rad8 {[%clk 0:00:24.6]} 36. Ng3 {[%clk 0:01:04.6]} 36... Be7
{[%clk 0:00:19.6]} 37. d6 {[%clk 0:00:55.6]} 37... Bg5 {[%clk 0:00:17.4]} 38.
Qc1 {[%clk 0:00:47.2]} 38... Bxf3+ {[%clk 0:00:16.2]} 39. Kxf3 {[%clk
0:00:47.2]} 39... Bh4 {[%clk 0:00:13.6]} 40. Rh1 {[%clk 0:00:37.6]} 40... Bxg3
{[%clk 0:00:11.9]} 41. Kxg3 {[%clk 0:00:38.5]} 41... Nf6 {[%clk 0:00:08.8]} 42.
exf6 {[%clk 0:00:37.2]} 42... Qxf6 {[%clk 0:00:09.2]} 43. Rd2 {[%clk 0:00:33.2]}
43... Re4 {[%clk 0:00:08.3]} 44. Qb2 {[%clk 0:00:30.2]} 44... Rxf4 {[%clk
0:00:07.3]} 45. Kxf4 {[%clk 0:00:28]} 45... Qg5+ {[%clk 0:00:06.4]} 46. Kf3
{[%clk 0:00:26.6]} 46... Qg4+ {[%clk 0:00:06.7]} 47. Kf2 {[%clk 0:00:26.2]}
47... Qf4+ {[%clk 0:00:06.6]} 48. Kg1 {[%clk 0:00:24.3]} 48... Qg3+ {[%clk
0:00:05.5]} 49. Rg2 {[%clk 0:00:24.3]} 49... Qe1+ {[%clk 0:00:05.6]} 50. Kh2
{[%clk 0:00:21]} 50... Qh4+ {[%clk 0:00:06.2]} 51. Kg1 {[%clk 0:00:18.7]} 51...
Qe1+ {[%clk 0:00:07.1]} 52. Kh2 {[%clk 0:00:19]} 52... Qh4+ {[%clk 0:00:07.7]}
53. Kg1 {[%clk 0:00:19.3]} 53... Qe1+ {[%clk 0:00:08.3]} 1/2-1/2

[Event "*** SCC Grand Prix: Titled Tuesday Blitz"]
[Site "Chess.com"]
[Date "2020.06.09"]
[Round "9"]
[White "harlem4brew"]
[Black "Grieve72"]
[Result "1-0"]
[WhiteElo "2225"]
[BlackElo "2366"]
[TimeControl "180+1"]
[EndTime "10:46:57 PDT"]
[Termination "harlem4brew won on time"]

1. e4 {[%clk 0:02:59.8]} 1... c5 {[%clk 0:02:59.9]} 2. Nf3 {[%clk 0:02:59.8]}
2... e6 {[%clk 0:03:00.4]} 3. d4 {[%clk 0:03:00.2]} 3... cxd4 {[%clk 0:03:01.3]}
4. Nxd4 {[%clk 0:03:01.1]} 4... Nc6 {[%clk 0:03:02]} 5. Nc3 {[%clk 0:03:01.5]}
5... Qc7 {[%clk 0:03:02.4]} 6. Be3 {[%clk 0:03:01.2]} 6... a6 {[%clk 0:03:02.8]}
7. Be2 {[%clk 0:03:01]} 7... Nf6 {[%clk 0:03:02.3]} 8. O-O {[%clk 0:03:01.2]}
8... Bb4 {[%clk 0:03:02.7]} 9. Bf3 {[%clk 0:02:55.5]} 9... Ne5 {[%clk
0:02:52.3]} 10. a3 {[%clk 0:02:47.9]} 10... Bd6 {[%clk 0:02:24.1]} 11. g3 {[%clk
0:02:46.2]} 11... Nc4 {[%clk 0:02:12.2]} 12. Bc1 {[%clk 0:02:31.3]} 12... Be5
{[%clk 0:02:01.6]} 13. Nde2 {[%clk 0:02:27.8]} 13... g5 {[%clk 0:01:34.5]} 14.
Bg2 {[%clk 0:02:23.2]} 14... g4 {[%clk 0:01:34.7]} 15. b3 {[%clk 0:02:18.7]}
15... Na5 {[%clk 0:01:23.8]} 16. Bb2 {[%clk 0:02:17.8]} 16... b5 {[%clk
0:01:22.2]} 17. Qd2 {[%clk 0:02:11.7]} 17... Bb7 {[%clk 0:01:18.9]} 18. Qg5
{[%clk 0:01:57.1]} 18... Rg8 {[%clk 0:01:06.1]} 19. Qh4 {[%clk 0:01:53.3]} 19...
O-O-O {[%clk 0:00:49.6]} 20. Rab1 {[%clk 0:01:46.5]} 20... Nc6 {[%clk 0:00:48]}
21. Rfd1 {[%clk 0:01:29.1]} 21... h5 {[%clk 0:00:47.1]} 22. a4 {[%clk
0:01:25.5]} 22... b4 {[%clk 0:00:27.3]} 23. Nd5 {[%clk 0:01:13.9]} 23... exd5
{[%clk 0:00:22.5]} 24. exd5 {[%clk 0:01:12.2]} 24... Ne7 {[%clk 0:00:17.6]} 25.
d6 {[%clk 0:01:06.4]} 25... Qc5 {[%clk 0:00:03.6]} 26. Bxb7+ {[%clk 0:00:42.4]}
26... Kxb7 {[%clk 0:00:03.8]} 27. dxe7 {[%clk 0:00:40.9]} 27... Qxe7 {[%clk
0:00:04.7]} 28. Bxe5 {[%clk 0:00:39.3]} 28... Qxe5 {[%clk 0:00:05.6]} 29. Nf4
{[%clk 0:00:39.2]} 29... d5 {[%clk 0:00:05.4]} 30. Nd3 {[%clk 0:00:38.3]} 30...
Qf5 {[%clk 0:00:05]} 31. Re1 {[%clk 0:00:34]} 31... Rde8 {[%clk 0:00:04.6]} 32.
Nc5+ {[%clk 0:00:24.8]} 32... Kc6 {[%clk 0:00:04.3]} 33. Nd3 {[%clk 0:00:24.8]}
33... Nd7 {[%clk 0:00:04.1]} 34. Nxb4+ {[%clk 0:00:24.9]} 34... Kb7 {[%clk
0:00:04.4]} 35. Re7 {[%clk 0:00:23.6]} 35... f6 {[%clk 0:00:02.8]} 36. Rbe1
{[%clk 0:00:18.4]} 36... Rxe7 {[%clk 0:00:01.1]} 37. Rxe7 {[%clk 0:00:19.3]}
37... Kc8 {[%clk 0:00:01.5]} 38. Re2 {[%clk 0:00:18.2]} 38... Ne5 {[%clk
0:00:01.8]} 39. Kf1 {[%clk 0:00:13.6]} 39... Nf3 {[%clk 0:00:01.6]} 40. Nxa6
{[%clk 0:00:11.4]} 40... Nxh4 {[%clk 0:00:01.7]} 41. gxh4 {[%clk 0:00:09.2]}
41... Rg7 {[%clk 0:00:01.5]} 42. Nc5 {[%clk 0:00:07.9]} 1-0

[Event "*** SCC Grand Prix: Titled Tuesday Blitz"]
[Site "Chess.com"]
[Date "2020.06.09"]
[Round "9"]
[White "Arkady_Gitelson"]
[Black "Twitch_ElhamBlitz05"]
[Result "0-1"]
[WhiteElo "2547"]
[BlackElo "2751"]
[TimeControl "180+1"]
[EndTime "10:46:58 PDT"]
[Termination "Twitch_ElhamBlitz05 won by resignation"]

1. e4 {[%clk 0:03:00.9]} 1... c6 {[%clk 0:03:00.2]} 2. d4 {[%clk 0:03:00.3]}
2... d5 {[%clk 0:03:00.7]} 3. exd5 {[%clk 0:03:00.2]} 3... cxd5 {[%clk
0:03:01.6]} 4. Bd3 {[%clk 0:03:00.5]} 4... Nf6 {[%clk 0:03:02.2]} 5. h3 {[%clk
0:02:59.7]} 5... g6 {[%clk 0:03:02.8]} 6. c3 {[%clk 0:02:58.7]} 6... Bg7 {[%clk
0:03:03.2]} 7. Nf3 {[%clk 0:02:58.8]} 7... O-O {[%clk 0:03:03.9]} 8. O-O {[%clk
0:02:58.9]} 8... Nc6 {[%clk 0:03:04.5]} 9. Bf4 {[%clk 0:02:58.3]} 9... Bf5
{[%clk 0:03:04.4]} 10. Qc2 {[%clk 0:02:57.7]} 10... Bxd3 {[%clk 0:03:03.9]} 11.
Qxd3 {[%clk 0:02:58.6]} 11... a6 {[%clk 0:03:04.2]} 12. Nbd2 {[%clk 0:02:57.7]}
12... e6 {[%clk 0:03:03.7]} 13. b4 {[%clk 0:02:54.5]} 13... Rc8 {[%clk
0:03:03.7]} 14. a4 {[%clk 0:02:54]} 14... Ne7 {[%clk 0:02:58]} 15. Nb3 {[%clk
0:02:46.9]} 15... Ne4 {[%clk 0:02:53.2]} 16. Nc5 {[%clk 0:02:46.1]} 16... b6
{[%clk 0:02:53.4]} 17. Nxe4 {[%clk 0:02:37.8]} 17... dxe4 {[%clk 0:02:53.4]} 18.
Qxe4 {[%clk 0:02:38.7]} 18... Rxc3 {[%clk 0:02:53]} 19. Rfc1 {[%clk 0:02:34.1]}
19... Rxc1+ {[%clk 0:02:50.3]} 20. Rxc1 {[%clk 0:02:33.9]} 20... Nd5 {[%clk
0:02:51.2]} 21. Bd2 {[%clk 0:02:28.6]} 21... Qd7 {[%clk 0:02:50.2]} 22. Qc2
{[%clk 0:02:23.7]} 22... Rd8 {[%clk 0:02:27.8]} 23. Ne5 {[%clk 0:02:18.8]} 23...
Qd6 {[%clk 0:01:44.8]} 24. Qb2 {[%clk 0:02:04.6]} 24... Ne7 {[%clk 0:01:34.4]}
25. Be3 {[%clk 0:01:56.2]} 25... Qd5 {[%clk 0:01:09.4]} 26. Qe2 {[%clk
0:01:50.2]} 26... a5 {[%clk 0:00:49.5]} 27. bxa5 {[%clk 0:01:47]} 27... bxa5
{[%clk 0:00:48.1]} 28. Rc5 {[%clk 0:01:40.9]} 28... Qe4 {[%clk 0:00:47]} 29.
Rxa5 {[%clk 0:01:26.8]} 29... Nf5 {[%clk 0:00:42.1]} 30. Qf3 {[%clk 0:01:15]}
30... Qxf3 {[%clk 0:00:26.3]} 31. Nxf3 {[%clk 0:01:14.2]} 31... Nxd4 {[%clk
0:00:24.2]} 32. Nxd4 {[%clk 0:01:11.5]} 32... Bxd4 {[%clk 0:00:25.1]} 33. Bxd4
{[%clk 0:01:12.1]} 33... Rxd4 {[%clk 0:00:26]} 34. Ra8+ {[%clk 0:01:12.4]} 34...
Kg7 {[%clk 0:00:25.9]} 35. a5 {[%clk 0:01:13.3]} 35... Rd1+ {[%clk 0:00:26.4]}
36. Kh2 {[%clk 0:01:12.7]} 36... Rd2 {[%clk 0:00:27.3]} 37. Kg3 {[%clk
0:01:10.2]} 37... Ra2 {[%clk 0:00:28]} 38. f4 {[%clk 0:01:07.7]} 38... Ra3+
{[%clk 0:00:26.7]} 39. Kf2 {[%clk 0:01:05.9]} 39... h6 {[%clk 0:00:27.2]} 40. a6
{[%clk 0:01:05.4]} 40... g5 {[%clk 0:00:27]} 41. fxg5 {[%clk 0:01:00.6]} 41...
hxg5 {[%clk 0:00:27.9]} 42. a7 {[%clk 0:01:00.3]} 42... Kf6 {[%clk 0:00:22.8]}
43. g4 {[%clk 0:00:59.7]} 43... Ke5 {[%clk 0:00:19.6]} 44. Rg8 {[%clk
0:00:57.4]} 44... Rxa7 {[%clk 0:00:19.1]} 45. Rxg5+ {[%clk 0:00:57]} 45... Kf4
{[%clk 0:00:19.7]} 46. Rb5 {[%clk 0:00:55.3]} 46... Ra2+ {[%clk 0:00:19.6]} 47.
Kg1 {[%clk 0:00:55]} 47... e5 {[%clk 0:00:07.5]} 48. Rb7 {[%clk 0:00:51.3]}
48... Kg3 {[%clk 0:00:04.4]} 49. Rb3+ {[%clk 0:00:48.1]} 49... Kf4 {[%clk
0:00:03.6]} 50. Rb7 {[%clk 0:00:47.1]} 50... f6 {[%clk 0:00:03.8]} 51. Rf7
{[%clk 0:00:43.9]} 51... e4 {[%clk 0:00:04.1]} 52. Rxf6+ {[%clk 0:00:43.2]}
52... Kg3 {[%clk 0:00:03.8]} 53. g5 {[%clk 0:00:38.4]} 53... e3 {[%clk
0:00:01.1]} 54. Rf1 {[%clk 0:00:36.5]} 54... e2 {[%clk 0:00:02]} 55. Re1 {[%clk
0:00:36.1]} 55... Rd2 {[%clk 0:00:02.9]} 0-1